[Event "Titled Tuesday Blitz May 2 Late 2023"]
[White "Bortnyk, Mykola"]
[Black "Naroditsky, Daniel"]
[WhiteFideId "14120836"]
[BlackFideId "2026961"]
[WhiteElo "2582"]
[BlackElo "2633"]
[Result "1/2-1/2"]
[Round "08"]
[TimeControl "180+2"]
[Date "2023.05.02"]
[WhiteClock "0:00:06"]
[BlackClock "0:00:05"]

1. e4 {[%clk 0:03:00]}  d6 {[%clk 0:02:59]} 2. d4 {[%clk 0:03:00]}  Nc6 {[%clk 0:02:58]} 3. Nf3 {[%clk 0:02:55]}  Nf6 {[%clk 0:02:58]} 4. Bd3 {[%clk 0:02:50]}  Bg4 {[%clk 0:02:55]} 5. c3 {[%clk 0:02:48]}  e5 {[%clk 0:02:56]} 6. Be3 {[%clk 0:02:48]}  Be7 {[%clk 0:02:48]} 7. h3 {[%clk 0:02:40]}  Bh5 {[%clk 0:02:48]} 8. g4 {[%clk 0:02:38]}  Bg6 {[%clk 0:02:47]} 9. d5 {[%clk 0:02:34]}  Nb8 {[%clk 0:02:45]} 10. Qc2 {[%clk 0:02:35]}  c6 {[%clk 0:02:43]} 11. c4 {[%clk 0:02:34]}  Nbd7 {[%clk 0:02:40]} 12. Nc3 {[%clk 0:02:30]}  cxd5 {[%clk 0:02:40]} 13. cxd5 {[%clk 0:02:20]}  Rc8 {[%clk 0:02:40]} 14. Qe2 {[%clk 0:02:13]}  O-O {[%clk 0:02:31]} 15. Nd2 {[%clk 0:02:09]}  Nc5 {[%clk 0:02:18]} 16. Bc2 {[%clk 0:02:02]}  Nfd7 {[%clk 0:02:18]} 17. Rc1 {[%clk 0:01:54]}  h6 {[%clk 0:02:10]} 18. O-O {[%clk 0:01:51]}  Bg5 {[%clk 0:02:03]} 19. Bb1 {[%clk 0:01:50]}  Qe7 {[%clk 0:01:44]} 20. b4 {[%clk 0:01:40]}  Na6 {[%clk 0:01:44]} 21. a3 {[%clk 0:01:38]}  Nc7 {[%clk 0:01:36]} 22. Nf3 {[%clk 0:01:30]}  Bxe3 {[%clk 0:01:35]} 23. Qxe3 {[%clk 0:01:31]}  Nb6 {[%clk 0:01:31]} 24. Bd3 {[%clk 0:01:29]}  Qd7 {[%clk 0:01:21]} 25. Nh4 {[%clk 0:01:25]}  Bh7 {[%clk 0:01:20]} 26. Nf5 {[%clk 0:01:22]}  Kh8 {[%clk 0:01:20]} 27. Kh2 {[%clk 0:01:22]}  f6 {[%clk 0:01:08]} 28. Rc2 {[%clk 0:01:21]}  Rfd8 {[%clk 0:00:52]} 29. Rfc1 {[%clk 0:01:20]}  Bxf5 {[%clk 0:00:52]} 30. gxf5 {[%clk 0:01:20]}  Nca8 {[%clk 0:00:47]} 31. Nb5 {[%clk 0:01:06]}  a6 {[%clk 0:00:43]} 32. Nc7 {[%clk 0:01:03]}  Rxc7 {[%clk 0:00:36]} 33. Rxc7 {[%clk 0:01:03]}  Nxc7 {[%clk 0:00:37]} 34. Qxb6 {[%clk 0:01:03]}  Na8 {[%clk 0:00:38]} 35. Qa7 {[%clk 0:00:54]}  Rc8 {[%clk 0:00:39]} 36. Rg1 {[%clk 0:00:41]}  Qc7 {[%clk 0:00:35]} 37. Qe3 {[%clk 0:00:31]}  Nb6 {[%clk 0:00:36]} 38. Rb1 {[%clk 0:00:24]}  Nc4 {[%clk 0:00:34]} 39. Bxc4 {[%clk 0:00:23]}  Qxc4 {[%clk 0:00:35]} 40. Rg1 {[%clk 0:00:21]}  Qc2 {[%clk 0:00:31]} 41. Rg3 {[%clk 0:00:15]}  Qd1 {[%clk 0:00:26]} 42. Qf3 {[%clk 0:00:13]}  Qe1 {[%clk 0:00:19]} 43. Rg2 {[%clk 0:00:12]}  Rc1 {[%clk 0:00:14]} 44. Qg4 {[%clk 0:00:08]}  Qh1+ {[%clk 0:00:09]} 45. Kg3 {[%clk 0:00:09]}  Rg1 {[%clk 0:00:05]} 46. Qf3 {[%clk 0:00:07]}  Rxg2+ {[%clk 0:00:04]} 47. Qxg2 {[%clk 0:00:08]}  Qc1 {[%clk 0:00:04]} 48. Qf3 {[%clk 0:00:07]}  Kh7 {[%clk 0:00:04]} 49. Qg4 {[%clk 0:00:06]}  Qg1+ {[%clk 0:00:03]} 50. Kf3 {[%clk 0:00:06]}  Qd1+ {[%clk 0:00:03]} 51. Kg2 {[%clk 0:00:04]}  Qd3 {[%clk 0:00:02]} 52. Qg6+ {[%clk 0:00:04]}  Kh8 {[%clk 0:00:02]} 53. Qe8+ {[%clk 0:00:04]}  Kh7 {[%clk 0:00:03]} 54. Qg6+ {[%clk 0:00:04]}  Kh8 {[%clk 0:00:04]} 55. Qe8+ {[%clk 0:00:05]}  Kh7 {[%clk 0:00:05]} 56. Qg6+ {[%clk 0:00:06]} 1/2-1/2


[Site "https://www.chess.com"]

[Event "Titled Tuesday Blitz May 2 Late 2023"]
[White "Sargsyan, Shant"]
[Black "Nakamura, Hikaru"]
[WhiteFideId "13306766"]
[BlackFideId "2016192"]
[WhiteElo "2628"]
[BlackElo "2885"]
[Result "1-0"]
[Round "08"]
[TimeControl "180+2"]
[Date "2023.05.02"]
[WhiteClock "0:00:15"]
[BlackClock "0:00:04"]

1. c4 {[%clk 0:03:00]}  Nf6 {[%clk 0:03:00]} 2. g3 {[%clk 0:03:00]}  e5 {[%clk 0:03:00]} 3. Bg2 {[%clk 0:03:01]}  c6 {[%clk 0:03:01]} 4. d4 {[%clk 0:02:59]}  e4 {[%clk 0:02:53]} 5. d5 {[%clk 0:02:59]}  Bb4+ {[%clk 0:02:49]} 6. Bd2 {[%clk 0:03:00]}  Qb6 {[%clk 0:02:41]} 7. Nc3 {[%clk 0:02:55]}  cxd5 {[%clk 0:02:27]} 8. Nxd5 {[%clk 0:02:47]}  Nxd5 {[%clk 0:02:27]} 9. cxd5 {[%clk 0:02:48]}  e3 {[%clk 0:02:18]} 10. fxe3 {[%clk 0:02:48]}  Bc5 {[%clk 0:02:18]} 11. Qb3 {[%clk 0:02:47]}  d6 {[%clk 0:02:14]} 12. Nf3 {[%clk 0:02:44]}  O-O {[%clk 0:02:10]} 13. Qxb6 {[%clk 0:02:41]}  Bxb6 {[%clk 0:02:11]} 14. Rc1 {[%clk 0:02:40]}  Nd7 {[%clk 0:02:10]} 15. Nd4 {[%clk 0:02:35]}  Nf6 {[%clk 0:02:08]} 16. O-O {[%clk 0:02:28]}  a6 {[%clk 0:02:03]} 17. a4 {[%clk 0:02:25]}  Re8 {[%clk 0:02:01]} 18. a5 {[%clk 0:02:23]}  Bc5 {[%clk 0:01:52]} 19. b4 {[%clk 0:02:16]}  Ba7 {[%clk 0:01:52]} 20. Rc7 {[%clk 0:02:05]}  Bb8 {[%clk 0:01:49]} 21. Rc2 {[%clk 0:02:04]}  Bd7 {[%clk 0:01:46]} 22. h3 {[%clk 0:02:00]}  h5 {[%clk 0:01:30]} 23. Kh2 {[%clk 0:01:59]}  Ba7 {[%clk 0:01:21]} 24. Bf3 {[%clk 0:02:00]}  Rac8 {[%clk 0:00:39]} 25. Rfc1 {[%clk 0:02:00]}  g5 {[%clk 0:00:33]} 26. Rxc8 {[%clk 0:01:54]}  Bxc8 {[%clk 0:00:28]} 27. b5 {[%clk 0:01:21]}  Bc5 {[%clk 0:00:14]} 28. Nb3 {[%clk 0:01:17]}  g4 {[%clk 0:00:15]} 29. hxg4 {[%clk 0:01:08]}  hxg4 {[%clk 0:00:15]} 30. Bg2 {[%clk 0:01:05]}  Nd7 {[%clk 0:00:16]} 31. b6 {[%clk 0:00:56]}  Kg7 {[%clk 0:00:16]} 32. Nxc5 {[%clk 0:00:41]}  Nxc5 {[%clk 0:00:15]} 33. e4 {[%clk 0:00:41]}  Kg6 {[%clk 0:00:11]} 34. Bf4 {[%clk 0:00:40]}  Bd7 {[%clk 0:00:10]} 35. e5 {[%clk 0:00:34]}  dxe5 {[%clk 0:00:11]} 36. Be3 {[%clk 0:00:22]}  Nb3 {[%clk 0:00:12]} 37. Rc7 {[%clk 0:00:20]}  Bb5 {[%clk 0:00:12]} 38. Rxb7 {[%clk 0:00:20]}  Nxa5 {[%clk 0:00:12]} 39. Rc7 {[%clk 0:00:17]}  Nc4 {[%clk 0:00:12]} 40. Bc5 {[%clk 0:00:15]}  e4 {[%clk 0:00:04]} 41. b7 {[%clk 0:00:15]} 1-0


[Site "https://www.chess.com"]

[Event "Titled Tuesday Blitz May 2 Late 2023"]
[White "Ibarra Jerez, Jose Carlos"]
[Black "Firouzja, Alireza"]
[WhiteFideId "2226332"]
[BlackFideId "12573981"]
[WhiteElo "2638"]
[BlackElo "2904"]
[Result "0-1"]
[Round "08"]
[TimeControl "180+2"]
[Date "2023.05.02"]
[WhiteClock "0:00:02"]
[BlackClock "0:00:17"]

1. e4 {[%clk 0:03:00]}  c5 {[%clk 0:02:57]} 2. Nf3 {[%clk 0:03:00]}  e6 {[%clk 0:02:57]} 3. d3 {[%clk 0:02:58]}  Nc6 {[%clk 0:02:56]} 4. g3 {[%clk 0:02:56]}  d5 {[%clk 0:02:54]} 5. Qe2 {[%clk 0:02:56]}  Nge7 {[%clk 0:02:53]} 6. Bg2 {[%clk 0:02:56]}  g6 {[%clk 0:02:54]} 7. h4 {[%clk 0:02:55]}  h6 {[%clk 0:02:53]} 8. O-O {[%clk 0:02:53]}  Bg7 {[%clk 0:02:53]} 9. e5 {[%clk 0:02:54]}  Qc7 {[%clk 0:02:47]} 10. Re1 {[%clk 0:02:54]}  b6 {[%clk 0:02:38]} 11. c4 {[%clk 0:02:54]}  a6 {[%clk 0:02:23]} 12. Nc3 {[%clk 0:02:52]}  O-O {[%clk 0:02:23]} 13. Bf4 {[%clk 0:02:49]}  Rd8 {[%clk 0:02:16]} 14. Rad1 {[%clk 0:02:30]}  Bb7 {[%clk 0:02:15]} 15. g4 {[%clk 0:02:16]}  Nd4 {[%clk 0:01:56]} 16. Nxd4 {[%clk 0:02:08]}  cxd4 {[%clk 0:01:57]} 17. Nb1 {[%clk 0:02:08]}  dxc4 {[%clk 0:01:57]} 18. dxc4 {[%clk 0:02:09]}  Bxg2 {[%clk 0:01:57]} 19. Kxg2 {[%clk 0:02:10]}  b5 {[%clk 0:01:55]} 20. b3 {[%clk 0:01:59]}  bxc4 {[%clk 0:01:53]} 21. bxc4 {[%clk 0:02:00]}  Rac8 {[%clk 0:01:51]} 22. Nd2 {[%clk 0:01:59]}  d3 {[%clk 0:01:49]} 23. Qe3 {[%clk 0:01:57]}  h5 {[%clk 0:01:40]} 24. f3 {[%clk 0:01:34]}  Qc6 {[%clk 0:01:28]} 25. Kg3 {[%clk 0:01:30]}  Rd7 {[%clk 0:01:26]} 26. Rb1 {[%clk 0:01:28]}  Qa4 {[%clk 0:01:16]} 27. Rb3 {[%clk 0:01:20]}  Qxa2 {[%clk 0:01:09]} 28. Rxd3 {[%clk 0:01:19]}  Rxd3 {[%clk 0:01:01]} 29. Qxd3 {[%clk 0:01:20]}  hxg4 {[%clk 0:01:01]} 30. fxg4 {[%clk 0:01:20]}  Nc6 {[%clk 0:01:02]} 31. Qd7 {[%clk 0:01:13]}  Qa3+ {[%clk 0:00:35]} 32. Nf3 {[%clk 0:01:13]}  Qf8 {[%clk 0:00:34]} 33. h5 {[%clk 0:01:11]}  gxh5 {[%clk 0:00:32]} 34. gxh5 {[%clk 0:01:11]}  Ne7 {[%clk 0:00:33]} 35. Bg5 {[%clk 0:00:41]}  Nf5+ {[%clk 0:00:32]} 36. Kh3 {[%clk 0:00:42]}  Rxc4 {[%clk 0:00:30]} 37. Qd3 {[%clk 0:00:25]}  Qc8 {[%clk 0:00:26]} 38. Rd1 {[%clk 0:00:21]}  Kh7 {[%clk 0:00:18]} 39. Bc1 {[%clk 0:00:17]}  Rc3 {[%clk 0:00:17]} 40. Qe4 {[%clk 0:00:14]}  Rxc1 {[%clk 0:00:17]} 41. Ng5+ {[%clk 0:00:14]}  Kg8 {[%clk 0:00:16]} 42. Rxc1 {[%clk 0:00:05]}  Qxc1 {[%clk 0:00:17]} 43. Qa8+ {[%clk 0:00:05]}  Bf8 {[%clk 0:00:17]} 44. Qg2 {[%clk 0:00:02]}  Qe3+ {[%clk 0:00:17]} 45. Kh2 {[%clk 0:00:02]}  Qf4+ {[%clk 0:00:17]} 0-1


[Site "https://www.chess.com"]

[Event "Titled Tuesday Blitz May 2 Late 2023"]
[White "Chigaev, Maksim"]
[Black "Caruana, Fabiano"]
[WhiteFideId "4108116"]
[BlackFideId "2020009"]
[WhiteElo "2547"]
[BlackElo "2837"]
[Result "0-1"]
[Round "08"]
[TimeControl "180+2"]
[Date "2023.05.02"]
[WhiteClock "0:00:54"]
[BlackClock "0:01:58"]

1. d4 {[%clk 0:03:00]}  Nf6 {[%clk 0:02:59]} 2. Bg5 {[%clk 0:03:00]}  d5 {[%clk 0:02:58]} 3. e3 {[%clk 0:03:00]}  c5 {[%clk 0:02:58]} 4. Bxf6 {[%clk 0:03:00]}  gxf6 {[%clk 0:02:59]} 5. dxc5 {[%clk 0:03:00]}  Nc6 {[%clk 0:03:00]} 6. Nd2 {[%clk 0:02:56]}  e5 {[%clk 0:03:00]} 7. Qh5 {[%clk 0:02:55]}  Bxc5 {[%clk 0:02:57]} 8. Ngf3 {[%clk 0:02:54]}  Be6 {[%clk 0:02:57]} 9. O-O-O {[%clk 0:02:53]}  Qc7 {[%clk 0:02:49]} 10. Kb1 {[%clk 0:02:52]}  O-O-O {[%clk 0:02:49]} 11. g3 {[%clk 0:02:48]}  Kb8 {[%clk 0:02:46]} 12. Bh3 {[%clk 0:02:48]}  a5 {[%clk 0:02:40]} 13. c4 {[%clk 0:02:27]}  a4 {[%clk 0:02:25]} 14. Bxe6 {[%clk 0:01:48]}  fxe6 {[%clk 0:02:23]} 15. cxd5 {[%clk 0:01:15]}  exd5 {[%clk 0:02:24]} 16. Qg4 {[%clk 0:01:16]}  e4 {[%clk 0:02:21]} 17. Nh4 {[%clk 0:01:13]}  Ne5 {[%clk 0:02:18]} 18. Qe2 {[%clk 0:00:55]}  Qb6 {[%clk 0:02:10]} 19. Rc1 {[%clk 0:00:54]}  Nd3 {[%clk 0:02:06]} 20. Rc2 {[%clk 0:00:54]}  Ba3 {[%clk 0:01:58]} 0-1


[Site "https://www.chess.com"]

[Event "Titled Tuesday Blitz May 2 Late 2023"]
[White "Andreikin, Dmitry"]
[Black "Dardha, Daniel"]
[WhiteFideId "4158814"]
[BlackFideId "240990"]
[WhiteElo "2736"]
[BlackElo "2581"]
[Result "1-0"]
[Round "08"]
[TimeControl "180+2"]
[Date "2023.05.02"]
[WhiteClock "0:00:17"]
[BlackClock "0:00:01"]

1. d4 {[%clk 0:02:57]}  Nf6 {[%clk 0:02:58]} 2. c4 {[%clk 0:02:58]}  e6 {[%clk 0:02:54]} 3. Nc3 {[%clk 0:02:57]}  Bb4 {[%clk 0:02:53]} 4. Nf3 {[%clk 0:02:58]}  h6 {[%clk 0:02:52]} 5. Qc2 {[%clk 0:02:50]}  c5 {[%clk 0:02:48]} 6. dxc5 {[%clk 0:02:47]}  Na6 {[%clk 0:02:44]} 7. a3 {[%clk 0:02:45]}  Bxc3+ {[%clk 0:02:41]} 8. Qxc3 {[%clk 0:02:46]}  Nxc5 {[%clk 0:02:42]} 9. b4 {[%clk 0:02:34]}  Nce4 {[%clk 0:02:39]} 10. Qd4 {[%clk 0:02:34]}  d6 {[%clk 0:02:32]} 11. g3 {[%clk 0:02:26]}  e5 {[%clk 0:02:30]} 12. Qe3 {[%clk 0:02:23]}  Be6 {[%clk 0:02:15]} 13. Bg2 {[%clk 0:02:18]}  Bxc4 {[%clk 0:02:11]} 14. Nh4 {[%clk 0:01:57]}  d5 {[%clk 0:02:00]} 15. Bxe4 {[%clk 0:01:55]}  dxe4 {[%clk 0:01:49]} 16. Qc5 {[%clk 0:01:54]}  Be6 {[%clk 0:01:03]} 17. Bb2 {[%clk 0:01:49]}  Rc8 {[%clk 0:00:49]} 18. Qxe5 {[%clk 0:01:26]}  O-O {[%clk 0:00:49]} 19. Rd1 {[%clk 0:01:25]}  Qc7 {[%clk 0:00:26]} 20. O-O {[%clk 0:00:40]}  Qxe5 {[%clk 0:00:25]} 21. Bxe5 {[%clk 0:00:41]}  Nd5 {[%clk 0:00:14]} 22. Nf5 {[%clk 0:00:34]}  Bxf5 {[%clk 0:00:14]} 23. Rxd5 {[%clk 0:00:34]}  Bh3 {[%clk 0:00:08]} 24. Re1 {[%clk 0:00:31]}  Rc2 {[%clk 0:00:08]} 25. Bf4 {[%clk 0:00:24]}  Rfc8 {[%clk 0:00:06]} 26. Rd2 {[%clk 0:00:22]}  Rxd2 {[%clk 0:00:04]} 27. Bxd2 {[%clk 0:00:23]}  Rc2 {[%clk 0:00:05]} 28. Be3 {[%clk 0:00:21]}  a6 {[%clk 0:00:04]} 29. a4 {[%clk 0:00:21]}  b5 {[%clk 0:00:04]} 30. axb5 {[%clk 0:00:21]}  axb5 {[%clk 0:00:05]} 31. f3 {[%clk 0:00:15]}  exf3 {[%clk 0:00:04]} 32. exf3 {[%clk 0:00:16]}  Rg2+ {[%clk 0:00:04]} 33. Kh1 {[%clk 0:00:16]}  Rb2 {[%clk 0:00:04]} 34. Kg1 {[%clk 0:00:15]}  Rxb4 {[%clk 0:00:03]} 35. Rd1 {[%clk 0:00:15]}  Rb3 {[%clk 0:00:03]} 36. Kf2 {[%clk 0:00:15]}  Rb2+ {[%clk 0:00:03]} 37. Rd2 {[%clk 0:00:15]}  Rb1 {[%clk 0:00:03]} 38. Rd8+ {[%clk 0:00:15]}  Kh7 {[%clk 0:00:03]} 39. Bd4 {[%clk 0:00:16]}  Rd1 {[%clk 0:00:01]} 40. Bb6 {[%clk 0:00:14]}  Rh1 {[%clk 0:00:01]} 41. g4 {[%clk 0:00:13]}  Rxh2+ {[%clk 0:00:01]} 42. Kg3 {[%clk 0:00:14]}  Rh1 {[%clk 0:00:02]} 43. Rd7 {[%clk 0:00:14]}  f6 {[%clk 0:00:02]} 44. Bc5 {[%clk 0:00:15]}  Bf1 {[%clk 0:00:02]} 45. Bf8 {[%clk 0:00:15]}  Kg8 {[%clk 0:00:02]} 46. Bxg7 {[%clk 0:00:15]}  Rh3+ {[%clk 0:00:02]} 47. Kf2 {[%clk 0:00:15]}  Bc4 {[%clk 0:00:01]} 48. Bxf6 {[%clk 0:00:15]}  b4 {[%clk 0:00:01]} 49. Rc7 {[%clk 0:00:15]}  Bf7 {[%clk 0:00:01]} 50. Rc8+ {[%clk 0:00:14]}  Kh7 {[%clk 0:00:01]} 51. Rc7 {[%clk 0:00:15]}  Kg6 {[%clk 0:00:02]} 52. Be5 {[%clk 0:00:15]}  b3 {[%clk 0:00:02]} 53. Rb7 {[%clk 0:00:16]}  Rh1 {[%clk 0:00:02]} 54. f4 {[%clk 0:00:16]}  Rh2+ {[%clk 0:00:02]} 55. Kg3 {[%clk 0:00:16]}  Rc2 {[%clk 0:00:01]} 56. f5+ {[%clk 0:00:17]}  Kg5 {[%clk 0:00:01]} 57. Rxf7 {[%clk 0:00:17]} 1-0


[Site "https://www.chess.com"]

[Event "Titled Tuesday Blitz May 2 Late 2023"]
[White "Bortnyk, Olexandr"]
[Black "Mekhitarian, Krikor Sevag"]
[WhiteFideId "14120828"]
[BlackFideId "2107660"]
[WhiteElo "2734"]
[BlackElo "2604"]
[Result "1-0"]
[Round "08"]
[TimeControl "180+2"]
[Date "2023.05.02"]
[WhiteClock "0:03:07"]
[BlackClock "0:00:02"]

1. d4 {[%clk 0:03:00]}  Nf6 {[%clk 0:02:58]} 2. Nc3 {[%clk 0:03:01]}  d5 {[%clk 0:02:54]} 3. Bf4 {[%clk 0:03:01]}  a6 {[%clk 0:02:42]} 4. e3 {[%clk 0:03:01]}  Bf5 {[%clk 0:02:41]} 5. Nf3 {[%clk 0:03:01]}  e6 {[%clk 0:02:38]} 6. Ne5 {[%clk 0:03:02]}  h6 {[%clk 0:02:35]} 7. g4 {[%clk 0:03:01]}  Bh7 {[%clk 0:02:35]} 8. h4 {[%clk 0:03:02]}  Nfd7 {[%clk 0:02:36]} 9. Bd3 {[%clk 0:03:03]}  Bxd3 {[%clk 0:02:33]} 10. cxd3 {[%clk 0:03:02]}  Nxe5 {[%clk 0:02:33]} 11. Bxe5 {[%clk 0:03:03]}  c5 {[%clk 0:02:26]} 12. Qb3 {[%clk 0:03:03]}  Qc8 {[%clk 0:02:03]} 13. dxc5 {[%clk 0:03:03]}  Nd7 {[%clk 0:01:53]} 14. d4 {[%clk 0:03:03]}  Nxe5 {[%clk 0:01:48]} 15. dxe5 {[%clk 0:03:04]}  Bxc5 {[%clk 0:01:46]} 16. Rc1 {[%clk 0:03:04]}  Ba7 {[%clk 0:01:41]} 17. Ke2 {[%clk 0:03:02]}  Qd7 {[%clk 0:01:38]} 18. Qa3 {[%clk 0:03:02]}  Qe7 {[%clk 0:01:34]} 19. Qxe7+ {[%clk 0:03:01]}  Kxe7 {[%clk 0:01:34]} 20. f4 {[%clk 0:03:01]}  Rac8 {[%clk 0:01:32]} 21. Kd3 {[%clk 0:03:02]}  Rc6 {[%clk 0:01:30]} 22. Ne2 {[%clk 0:03:02]}  Rhc8 {[%clk 0:01:28]} 23. Rxc6 {[%clk 0:03:02]}  Rxc6 {[%clk 0:01:29]} 24. h5 {[%clk 0:03:01]}  f6 {[%clk 0:01:11]} 25. exf6+ {[%clk 0:03:02]}  Kxf6 {[%clk 0:01:08]} 26. b3 {[%clk 0:03:03]}  Bb6 {[%clk 0:00:52]} 27. Rf1 {[%clk 0:03:04]}  Rc8 {[%clk 0:00:42]} 28. a3 {[%clk 0:03:04]}  Rc6 {[%clk 0:00:40]} 29. Rg1 {[%clk 0:03:03]}  Kf7 {[%clk 0:00:39]} 30. g5 {[%clk 0:03:03]}  hxg5 {[%clk 0:00:34]} 31. fxg5 {[%clk 0:03:04]}  e5 {[%clk 0:00:33]} 32. Rf1+ {[%clk 0:03:05]}  Kg8 {[%clk 0:00:27]} 33. Rf5 {[%clk 0:03:05]}  Re6 {[%clk 0:00:22]} 34. g6 {[%clk 0:03:05]}  Bd8 {[%clk 0:00:15]} 35. Nc3 {[%clk 0:03:05]}  d4 {[%clk 0:00:07]} 36. exd4 {[%clk 0:03:06]}  exd4 {[%clk 0:00:07]} 37. Ne4 {[%clk 0:03:07]}  Be7 {[%clk 0:00:07]} 38. b4 {[%clk 0:03:07]}  Rb6 {[%clk 0:00:03]} 39. Kxd4 {[%clk 0:03:06]}  Re6 {[%clk 0:00:03]} 40. Re5 {[%clk 0:03:06]}  Rxe5 {[%clk 0:00:02]} 41. Kxe5 {[%clk 0:03:07]}  Kf8 {[%clk 0:00:03]} 42. Ke6 {[%clk 0:03:07]}  Ke8 {[%clk 0:00:02]} 43. h6 {[%clk 0:03:07]} 1-0


[Site "https://www.chess.com"]

[Event "Titled Tuesday Blitz May 2 Late 2023"]
[White "Matlakov, Maxim"]
[Black "Sieciechowicz, Marcin"]
[WhiteFideId "4168003"]
[BlackFideId "1130170"]
[WhiteElo "2666"]
[BlackElo "2302"]
[Result "1-0"]
[Round "08"]
[TimeControl "180+2"]
[Date "2023.05.02"]
[WhiteClock "0:01:24"]
[BlackClock "0:00:11"]

1. Nf3 {[%clk 0:03:00]}  Nf6 {[%clk 0:02:58]} 2. g3 {[%clk 0:03:01]}  d5 {[%clk 0:02:59]} 3. Bg2 {[%clk 0:03:01]}  c6 {[%clk 0:02:59]} 4. O-O {[%clk 0:02:59]}  Bf5 {[%clk 0:03:00]} 5. c4 {[%clk 0:02:54]}  h6 {[%clk 0:02:58]} 6. d3 {[%clk 0:02:52]}  Nbd7 {[%clk 0:02:56]} 7. cxd5 {[%clk 0:02:50]}  cxd5 {[%clk 0:02:56]} 8. Nc3 {[%clk 0:02:50]}  e6 {[%clk 0:02:55]} 9. e4 {[%clk 0:02:46]}  dxe4 {[%clk 0:02:49]} 10. dxe4 {[%clk 0:02:46]}  Nxe4 {[%clk 0:02:49]} 11. Nd4 {[%clk 0:02:45]}  Nxc3 {[%clk 0:02:43]} 12. bxc3 {[%clk 0:02:46]}  Nc5 {[%clk 0:02:39]} 13. Nxf5 {[%clk 0:02:34]}  Qxd1 {[%clk 0:02:31]} 14. Rxd1 {[%clk 0:02:35]}  exf5 {[%clk 0:02:30]} 15. Be3 {[%clk 0:02:08]}  Ne4 {[%clk 0:01:59]} 16. Rd5 {[%clk 0:02:06]}  g6 {[%clk 0:01:33]} 17. Re5+ {[%clk 0:01:58]}  Kd7 {[%clk 0:01:27]} 18. Rd1+ {[%clk 0:01:58]}  Kc7 {[%clk 0:01:07]} 19. Bf4 {[%clk 0:01:58]}  Kc6 {[%clk 0:00:44]} 20. g4 {[%clk 0:01:39]}  Bg7 {[%clk 0:00:44]} 21. gxf5 {[%clk 0:01:39]}  Bxe5 {[%clk 0:00:13]} 22. Bxe4+ {[%clk 0:01:38]}  Kc5 {[%clk 0:00:12]} 23. Bxe5 {[%clk 0:01:35]}  Rhe8 {[%clk 0:00:12]} 24. Bd4+ {[%clk 0:01:27]}  Kc4 {[%clk 0:00:12]} 25. Bxb7 {[%clk 0:01:25]}  Rad8 {[%clk 0:00:11]} 26. Ba6+ {[%clk 0:01:24]} 1-0


[Site "https://www.chess.com"]

[Event "Titled Tuesday Blitz May 2 Late 2023"]
[White "Kamsky, Gata"]
[Black "Martinez Ramirez, Lennis"]
[WhiteFideId "2000024"]
[BlackFideId "3509079"]
[WhiteElo "2660"]
[BlackElo "2410"]
[Result "1-0"]
[Round "08"]
[TimeControl "180+2"]
[Date "2023.05.02"]
[WhiteClock "0:00:11"]
[BlackClock "0:00:02"]

1. e4 {[%clk 0:03:00]}  c5 {[%clk 0:02:59]} 2. Nc3 {[%clk 0:02:57]}  Nc6 {[%clk 0:02:59]} 3. f4 {[%clk 0:02:53]}  e6 {[%clk 0:02:59]} 4. Nf3 {[%clk 0:02:52]}  d5 {[%clk 0:02:59]} 5. d3 {[%clk 0:02:49]}  b5 {[%clk 0:02:39]} 6. a3 {[%clk 0:02:40]}  Rb8 {[%clk 0:02:37]} 7. g3 {[%clk 0:02:28]}  a5 {[%clk 0:02:35]} 8. a4 {[%clk 0:02:28]}  b4 {[%clk 0:02:35]} 9. Nb5 {[%clk 0:02:28]}  Nf6 {[%clk 0:02:29]} 10. Qe2 {[%clk 0:02:24]}  Ba6 {[%clk 0:02:22]} 11. Bg2 {[%clk 0:02:20]}  Be7 {[%clk 0:02:15]} 12. O-O {[%clk 0:02:19]}  O-O {[%clk 0:02:15]} 13. Re1 {[%clk 0:02:14]}  d4 {[%clk 0:01:45]} 14. b3 {[%clk 0:02:11]}  Bxb5 {[%clk 0:01:40]} 15. axb5 {[%clk 0:02:11]}  Rxb5 {[%clk 0:01:34]} 16. h4 {[%clk 0:02:05]}  Qc7 {[%clk 0:00:29]} 17. Bh3 {[%clk 0:02:03]}  e5 {[%clk 0:00:24]} 18. f5 {[%clk 0:01:52]}  Ne8 {[%clk 0:00:17]} 19. g4 {[%clk 0:01:51]}  f6 {[%clk 0:00:18]} 20. g5 {[%clk 0:01:51]}  Nd6 {[%clk 0:00:17]} 21. Kh1 {[%clk 0:01:49]}  Kf7 {[%clk 0:00:17]} 22. Rg1 {[%clk 0:01:47]}  Ke8 {[%clk 0:00:16]} 23. gxf6 {[%clk 0:01:24]}  gxf6 {[%clk 0:00:13]} 24. Bh6 {[%clk 0:01:22]}  Rf7 {[%clk 0:00:11]} 25. Rg8+ {[%clk 0:01:22]}  Kd7 {[%clk 0:00:11]} 26. Bg4 {[%clk 0:01:08]}  Rb8 {[%clk 0:00:12]} 27. Rxb8 {[%clk 0:01:05]}  Qxb8 {[%clk 0:00:13]} 28. Bh5 {[%clk 0:01:05]}  Rf8 {[%clk 0:00:13]} 29. Bxf8 {[%clk 0:01:05]}  Qxf8 {[%clk 0:00:14]} 30. Qd2 {[%clk 0:01:01]}  Nb5 {[%clk 0:00:09]} 31. Nh2 {[%clk 0:00:52]}  Nc3 {[%clk 0:00:09]} 32. Ng4 {[%clk 0:00:49]}  c4 {[%clk 0:00:09]} 33. dxc4 {[%clk 0:00:48]}  Nxe4 {[%clk 0:00:09]} 34. Qg2 {[%clk 0:00:48]}  Nc3 {[%clk 0:00:04]} 35. Re1 {[%clk 0:00:41]}  Kc7 {[%clk 0:00:04]} 36. Kh2 {[%clk 0:00:30]}  Qc8 {[%clk 0:00:04]} 37. Qf3 {[%clk 0:00:29]}  Qf8 {[%clk 0:00:04]} 38. Kh3 {[%clk 0:00:29]}  a4 {[%clk 0:00:05]} 39. bxa4 {[%clk 0:00:29]}  Nxa4 {[%clk 0:00:04]} 40. Ra1 {[%clk 0:00:28]}  Nb6 {[%clk 0:00:04]} 41. Nf2 {[%clk 0:00:26]}  Nxc4 {[%clk 0:00:02]} 42. Ra6 {[%clk 0:00:24]}  Nb6 {[%clk 0:00:02]} 43. Qe4 {[%clk 0:00:23]}  Qc8 {[%clk 0:00:02]} 44. Ra1 {[%clk 0:00:21]}  Qd7 {[%clk 0:00:03]} 45. Bf3 {[%clk 0:00:20]}  Qd6 {[%clk 0:00:02]} 46. Nd3 {[%clk 0:00:20]}  Qd7 {[%clk 0:00:02]} 47. Kg4 {[%clk 0:00:17]}  Qd6 {[%clk 0:00:02]} 48. Ra6 {[%clk 0:00:16]}  Qd7 {[%clk 0:00:02]} 49. Kh3 {[%clk 0:00:13]}  Kb7 {[%clk 0:00:02]} 50. Ra5 {[%clk 0:00:12]}  Kc7 {[%clk 0:00:02]} 51. Rb5 {[%clk 0:00:12]}  Qd6 {[%clk 0:00:02]} 52. Nc5 {[%clk 0:00:11]} 1-0


[Site "https://www.chess.com"]